fUST/lending_fUST_20250715
["ID","MTS","AMOUNT","RATE_DAILY","PERIOD"]
[372081458,1752513053073,-500.0,0.00016712,2]
[372081460,1752513053083,-2150.89317283,0.00016739,2]
[372081462,1752513053092,-485.68428812,0.00016739,2]
[372081464,1752513053101,-170.27239289,0.00016775,2]
[372081466,1752513053111,-500.0,0.00016873,2]
[372081468,1752513053120,-500.0,0.00016873,2]
[372081470,1752513053130,-500.99239054,0.00016873,2]
[372081472,1752513053141,-501.62812896,0.00016873,2]
[372081474,1752513053150,-500.0,0.00016873,2]
[372081476,1752513053160,-500.0,0.00016873,2]
[372081478,1752513053170,-500.0,0.00016873,2]
[372081480,1752513053179,-500.0,0.00016873,2]
[372081482,1752513053192,-500.0,0.00016873,2]
[372081484,1752513053202,-638.0285363,0.00016873,2]
[372081486,1752513053211,-500.0,0.00016873,2]
[372081488,1752513053221,-505.70234151,0.00016873,2]
[372081490,1752513053232,-500.0,0.00016873,2]
[372081492,1752513053241,-500.0,0.00016873,2]
[372081494,1752513053251,-500.0,0.00016873,2]
[372081496,1752513053262,-183.36235046,0.00016873,2]
[372081498,1752513053273,-500.0,0.00016873,2]
[372081500,1752513053282,-500.0,0.00016873,2]
[372081502,1752513053292,-500.0,0.00016873,2]
[372081504,1752513053301,-505.70234151,0.00016873,2]
[372081506,1752513053311,-500.0,0.00016873,2]
[372081508,1752513053320,-500.0,0.00016873,2]
[372081510,1752513053330,-500.0,0.00016873,2]
[372081512,1752513053339,-500.0,0.00016873,2]
[372081514,1752513053348,-505.70234151,0.00016873,2]
[372081516,1752513053357,-500.0,0.00016873,2]
[372081518,1752513053367,-500.0,0.00016873,2]
[372081520,1752513053377,-500.0,0.00016873,2]
[372081522,1752513053386,-500.0,0.00016873,2]
[372081524,1752513053396,-505.70234151,0.00016873,2]
[372081526,1752513053405,-500.0,0.00016873,2]
[372081528,1752513053415,-500.0,0.00016873,2]
[372081530,1752513053425,-500.0,0.00016873,2]
[372081532,1752513053434,-500.0,0.00016873,2]
[372081534,1752513053443,-505.70234151,0.00016873,2]
[372081536,1752513053453,-500.0,0.00016873,2]
[372081538,1752513053463,-500.0,0.00016873,2]
[372081540,1752513053472,-500.0,0.00016873,2]
[372081542,1752513053482,-649.37657573,0.00016873,2]
[372081544,1752513053492,-500.0,0.00016873,2]
[372081546,1752513053501,-505.70234151,0.00016873,2]
[372081548,1752513053511,-500.0,0.00016873,2]
[372081550,1752513053521,-500.0,0.00016873,2]
[372081552,1752513053530,-500.0,0.00016873,2]
[372081554,1752513053540,-505.70234151,0.00016873,2]
[372081556,1752513053549,-500.0,0.00016873,2]
[372081558,1752513053559,-500.0,0.00016873,2]
[372081560,1752513053569,-500.0,0.00016873,2]
[372081562,1752513053578,-500.0,0.00016873,2]
[372081564,1752513053587,-500.0,0.00016873,2]
[372081566,1752513053596,-505.70234151,0.00016873,2]
[372081568,1752513053605,-500.0,0.00016873,2]
[372081570,1752513053615,-505.70234151,0.00016873,2]
[372081572,1752513053625,-500.0,0.00016873,2]
[372081574,1752513053636,-500.0,0.00016873,2]
[372081576,1752513053645,-500.0,0.00016873,2]
[372081578,1752513053654,-500.0,0.00016873,2]
[372081579,1752513053663,-500.0,0.00016873,2]
[372081582,1752513053673,-505.70234151,0.00016873,2]
[372081583,1752513053682,-500.0,0.00016873,2]
[372081585,1752513053692,-500.0,0.00016873,2]
[372081587,1752513053701,-500.0,0.00016873,2]
[372081589,1752513053711,-505.70234151,0.00016873,2]
[372081591,1752513053721,-231.65148034,0.00016873,2]
[372081594,1752513053730,-500.0,0.00016873,2]
[372081595,1752513053741,-500.0,0.00016873,2]
[372081597,1752513053750,-505.70234151,0.00016873,2]
[372081599,1752513053760,-500.0,0.00016873,2]
[372081601,1752513053770,-431.84717147,0.00016873,2]
[372081604,1752513053780,-505.70234151,0.00016873,2]
[372081605,1752513053790,-505.70234151,0.00016873,2]
[372081607,1752513053801,-500.0,0.00016873,2]
[372081609,1752513053811,-500.0,0.00016873,2]
[372081611,1752513053821,-505.70234151,0.00016873,2]
[372081613,1752513053831,-500.0,0.00016873,2]
[372081615,1752513053841,-500.0,0.00016873,2]
[372081617,1752513053853,-500.0,0.00016873,2]
[372081618,1752513053863,-505.70234151,0.00016873,2]
[372081619,1752513053873,-505.70234151,0.00016873,2]
[372081620,1752513053885,-500.0,0.00016873,2]
[372081621,1752513053895,-505.70234151,0.00016873,2]
[372081622,1752513053905,-505.70234151,0.00016873,2]
[372081623,1752513053915,-500.0,0.00016873,2]
[372081624,1752513053924,-505.70234151,0.00016873,2]
[372081625,1752513053934,-500.0,0.00016873,2]
[372081626,1752513053944,-505.70234151,0.00016873,2]
[372081627,1752513053954,-500.0,0.00016873,2]
[372081628,1752513053964,-505.70234151,0.00016873,2]
[372081629,1752513053974,-500.0,0.00016873,2]
[372081630,1752513053984,-505.70234151,0.00016873,2]
[372081631,1752513053994,-500.0,0.00016873,2]
[372081632,1752513054004,-505.70234151,0.00016873,2]
[372081633,1752513054014,-500.0,0.00016873,2]
[372081634,1752513054024,-505.70234151,0.00016873,2]
[372081635,1752513054034,-500.0,0.00016873,2]
[372081636,1752513054043,-505.70234151,0.00016873,2]
[372081637,1752513054052,-500.0,0.00016873,2]
[372081638,1752513054062,-505.70234151,0.00016873,2]
[372081639,1752513054071,-500.0,0.00016873,2]
[372081640,1752513054080,-505.70234151,0.00016873,2]
[372081641,1752513054090,-544.30869963,0.00016873,2]
[372081642,1752513054100,-505.70234151,0.00016873,2]
[372081643,1752513054109,-505.70234151,0.00016873,2]
[372081644,1752513054119,-500.0,0.00016873,2]
[372081645,1752513054130,-505.70234151,0.00016873,2]
[372081646,1752513054139,-500.0,0.00016873,2]
[372081647,1752513054149,-505.70234151,0.00016873,2]
[372081648,1752513054159,-505.70234151,0.00016873,2]
[372081649,1752513054168,-500.0,0.00016873,2]
[372081650,1752513054177,-505.70234151,0.00016873,2]
[372081651,1752513054192,-505.70234151,0.00016873,2]
[372081653,1752513054202,-500.0,0.00016873,2]
[372081654,1752513054211,-500.0,0.00016873,2]
[372081655,1752513054221,-505.70234151,0.00016873,2]
[372081657,1752513054231,-505.70234151,0.00016873,2]
[372081659,1752513054241,-500.0,0.00016873,2]
[372081661,1752513054251,-500.0,0.00016873,2]
[372081663,1752513054262,-505.70234151,0.00016873,2]
[372081665,1752513054272,-500.0,0.00016873,2]
[372081667,1752513054281,-505.70234151,0.00016873,2]
[372081669,1752513054291,-505.70234151,0.00016873,2]
[372081671,1752513054300,-500.0,0.00016873,2]
[372081673,1752513054309,-505.70234151,0.00016873,2]
[372081675,1752513054318,-505.70234151,0.00016873,2]
[372081677,1752513054328,-505.70234151,0.00016873,2]
[372081679,1752513054338,-505.70234151,0.00016873,2]
[372081681,1752513054347,-505.70234151,0.00016873,2]
[372081683,1752513054357,-505.70234151,0.00016873,2]
[372081685,1752513054366,-505.70234151,0.00016873,2]
[372081687,1752513054375,-505.70234151,0.00016873,2]
[372081689,1752513054386,-505.70234151,0.00016873,2]
[372081691,1752513054396,-505.70234151,0.00016873,2]
[372081692,1752513054405,-505.70234151,0.00016873,2]
[372081694,1752513054415,-505.70234151,0.00016873,2]
[372081697,1752513054425,-505.70234151,0.00016873,2]
[372081698,1752513054434,-505.70234151,0.00016873,2]
[372081700,1752513054443,-505.70234151,0.00016873,2]
[372081702,1752513054453,-505.70234151,0.00016873,2]
[372081705,1752513054464,-505.70234151,0.00016873,2]
[372081707,1752513054473,-505.70234151,0.00016873,2]
[372081709,1752513054483,-505.70234151,0.00016873,2]
[372081711,1752513054493,-505.70234151,0.00016873,2]
[372081713,1752513054502,-505.70234151,0.00016873,2]
[372081715,1752513054512,-505.70234151,0.00016873,2]
[372081716,1752513054521,-505.70234151,0.00016873,2]
[372081718,1752513054530,-505.70234151,0.00016873,2]
[372081721,1752513054540,-2150.89317283,0.00016873,2]
[372081722,1752513054549,-500.0,0.00016875,2]
[372081725,1752513054559,-500.0,0.00016875,2]
[372081727,1752513054569,-500.0,0.00016875,2]
[372081728,1752513054578,-553.06598496,0.00016875,2]
[372081730,1752513054588,-500.0,0.00016875,2]
[372081733,1752513054598,-500.0,0.00016875,2]
[372081735,1752513054607,-500.0,0.00016875,2]
[372081736,1752513054616,-500.0,0.00016875,2]
[372081738,1752513054626,-500.0,0.00016875,2]
[372081740,1752513054637,-231.21446015,0.00016875,2]
[372081743,1752513054647,-500.0,0.00016875,2]
[372081745,1752513054656,-500.0,0.00016875,2]
[372081746,1752513054666,-2373.08,0.00016875,2]
[372081749,1752513054676,-2373.08,0.00016875,2]
[372081751,1752513054686,-2373.08,0.00016875,2]
[372081753,1752513054695,-2373.08,0.00016875,2]
[372081755,1752513054704,-2373.08,0.00016875,2]
[372081757,1752513054713,-2373.08,0.00016875,2]
[372081759,1752513054723,-2373.08,0.00016875,2]
[372081761,1752513054733,-2373.08,0.00016875,2]
[372081763,1752513054742,-2373.08,0.00016875,2]
[372081765,1752513054751,-2373.08,0.00016875,2]
[372081767,1752513054760,-2373.08,0.00016875,2]
[372081779,1752513054875,-2373.08,0.00016875,2]
[372081781,1752513054886,-2373.2,0.00016875,2]
[372081783,1752513054896,-29369.62456888,0.00016876,2]
[372081802,1752513055076,-460.0,0.00016712,2]
[372081804,1752513055087,-6585.75847765,0.00016876,2]
[372081806,1752513055100,-1017.31643634,0.00016876,2]
[372081810,1752513055122,-501.71204406,0.00016712,2]
[372081812,1752513055132,-66.16693989,0.00016876,2]
[372081814,1752513055144,-776.7065474,0.00016876,2]
[372081816,1752513055155,-637.71762885,0.00016876,2]
[372081818,1752513055167,-751.96781573,0.00016876,2]
[372081848,1752513055468,-500.0,0.00016438,2]
[372081850,1752513055478,-500.0,0.00016438,2]
[372081852,1752513055487,-29099.996,0.00016876,2]
[372081854,1752513055499,-96146.99999998,0.00016876,2]
[372081856,1752513055511,-458.92412233,0.00016876,2]
[372081858,1752513055522,-488.35615697,0.00016876,2]
[372081861,1752513055543,-3586.14584053,0.00016876,2]
[372081863,1752513055554,-26820.00000158,0.00016876,2]
[372081877,1752513055684,-506.64625196,0.00016438,2]
[372081879,1752513055694,-460.0,0.00016438,2]
[372081881,1752513055703,-421.10941343,0.00016873,2]
[372081883,1752513055713,-3025.7343401,0.00016876,2]
[372081885,1752513055724,-515.70928475,0.00016876,2]
[372081888,1752513055736,-800.02194673,0.00016876,2]
[372081890,1752513055747,-1269.92383453,0.00016876,2]
[372081892,1752513055759,-775.9496842,0.00016876,2]
[372081894,1752513055770,-9975.31376506,0.00016876,2]
[372081896,1752513055781,-5000.81603815,0.00016876,2]
[372081903,1752513055841,-350.943936,0.00016438,2]
[372082153,1752513134836,2867.9512684,0.00015793,2]
[372082155,1752513152634,178.847876,0.00015945,2]
[372082156,1752513153006,151.20990503,0.00015945,2]
[372082172,1752513329878,299.712298,0.00013699,2]
[372082173,1752513527727,600.38730313,1e-05,2]
[372082200,1752513579758,5610.4128624,0.00015634,2]
[372082210,1752513649338,500.0,0.00022,120]
[372082211,1752513650102,500.0,0.00022,120]
[372082212,1752513650877,500.0,0.00022,120]
[372082213,1752513651642,500.0,0.00022,120]
[372082214,1752513652408,500.0,0.00022,120]
[372082215,1752513653172,500.0,0.00022,120]
[372082216,1752513653930,500.0,0.00022,120]
[372082217,1752513654297,-5000.0,0.000196,20]
[372082218,1752513654715,500.0,0.00022,120]
[372082219,1752513655470,500.0,0.00022,120]
[372082220,1752513656913,500.0,0.00022,120]
[372082221,1752513658219,500.0,0.00022,120]
[372082222,1752513658984,500.0,0.00022,120]
[372082223,1752513660142,500.0,0.00022,120]
[372082224,1752513660934,500.0,0.00022,120]
[372082225,1752513661771,500.0,0.00022,120]
[372082226,1752513662595,500.0,0.00022,120]
[372082227,1752513663458,500.0,0.00022,120]
[372082228,1752513663827,177.0,0.00025322,60]
[372082229,1752513664228,500.0,0.00022,120]
[372082230,1752513664984,500.0,0.00022,120]
[372082231,1752513665765,500.0,0.00022,120]
[372082232,1752513666847,500.0,0.00022,120]
[372082233,1752513668467,500.0,0.00022,120]
[372082234,1752513669309,500.0,0.00022,120]
[372082235,1752513670363,500.0,0.00022,120]
[372082236,1752513670999,500.0,0.00022,120]
[372082237,1752513671790,500.0,0.00022,120]
[372082238,1752513672544,500.0,0.00022,120]
[372082239,1752513673408,500.0,0.00022,120]
[372082240,1752513674240,500.0,0.00022,120]
[372082241,1752513675012,500.0,0.00022,120]
[372082242,1752513675792,500.0,0.00022,120]
[372082243,1752513676557,500.0,0.00022,120]
[372082244,1752513677326,500.0,0.00022,120]
[372082245,1752513678168,500.0,0.00022,120]
[372082246,1752513678942,500.0,0.00022,120]
[372082248,1752513679729,500.0,0.00022,120]
[372082249,1752513680630,500.0,0.00022,120]
[372082250,1752513681306,500.0,0.00022,120]
[372082251,1752513682094,500.0,0.00022,120]
[372082252,1752513682858,152.43,0.00022,120]
[372082253,1752513686143,199.13415651,0.00025322,120]
[372082254,1752513690900,200.0,0.00026568,120]
[372082255,1752513699331,151.0,0.00027397,120]
[372082259,1752513736048,184.0,0.00017582,7]
[372082260,1752513736671,151.0,0.00027397,120]
[372082261,1752513737455,4866.03055782,0.00015593,2]
[372082262,1752513737480,20000.0,0.00015593,2]
[372082263,1752513737503,20000.0,0.00015593,2]
[372082264,1752513737527,20000.0,0.00015593,2]
[372082265,1752513737549,19023.99899868,0.00015593,2]
[372082268,1752513747927,1950.0,0.0002199,120]
[372082270,1752513748550,1950.0,0.0002198,120]
[372082271,1752513748777,150.5,0.0002199,120]
[372082273,1752513749000,1950.0,0.0002197,120]
[372082276,1752513749357,231.19,0.0002198,120]
[372082277,1752513749394,500.0,0.00022,120]
[372082278,1752513749442,1950.0,0.0002269,120]
[372082280,1752513749893,1950.0,0.0002268,120]
[372082281,1752513750171,500.0,0.00022,120]
[372082282,1752513750346,1950.0,0.0002267,120]
[372082283,1752513750485,200.0,0.00026398,120]
[372082284,1752513750818,1950.0,0.0002479,120]
[372082285,1752513750950,500.0,0.00022,120]
[372082286,1752513751746,500.0,0.00022,120]
[372082287,1752513752538,500.0,0.00022,120]
[372082288,1752513754233,500.0,0.00022,120]
[372082289,1752513754679,500.0,0.00022,120]
[372082290,1752513754707,1950.0,0.0002478,120]
[372082291,1752513755330,1950.0,0.0002529,120]
[372082292,1752513755369,500.0,0.00022,120]
[372082293,1752513755439,1958.67,0.0002528,120]
[372082294,1752513755886,500.0,0.00022,120]
[372082295,1752513756568,500.0,0.00022,120]
[372082296,1752513757498,500.0,0.00022,120]
[372082297,1752513758272,500.0,0.00022,120]
[372082298,1752513759050,500.0,0.00022,120]
[372082299,1752513759805,500.0,0.00022,120]
[372082300,1752513760579,500.0,0.00022,120]
[372082301,1752513761346,500.0,0.00022,120]
[372082302,1752513762122,500.0,0.00022,120]
[372082303,1752513762903,500.0,0.00022,120]
[372082304,1752513763685,500.0,0.00022,120]
[372082313,1752513806159,166.0,0.00024,120]
[372082314,1752513810746,200.0,0.0002643,120]
[372082320,1752513868068,150.5,0.00021908,120]
[372082321,1752513868519,150.5,0.00021898,120]
[372082322,1752513869165,271.58,0.00021888,120]
[372082324,1752513870727,200.0,0.00027124,120]
[372082327,1752513897610,541.6050336,0.00015468,2]
[372082334,1752513913492,173.0,0.00024,120]
[372082335,1752513914884,173.0,0.000251,120]
[372082336,1752513915491,152.357551,0.000198,20]
[372082337,1752513915945,152.357551,0.000198,20]
[372082338,1752513916278,173.0,0.000262,120]
[372082339,1752513916760,152.357551,0.000198,20]
[372082340,1752513917710,173.0,0.000273,120]
[372082349,1752514000519,1741.84107635,0.000222,69]
[372082350,1752514004370,1741.84107632,0.000222,69]
[372082351,1752514009394,1741.84107632,0.000222,69]
[372082352,1752514014392,1741.84107632,0.000222,69]
[372082353,1752514019343,1741.84107632,0.00022639,71]
[372082360,1752514050750,200.0,0.00026634,120]
[372082361,1752514053173,1000.0,0.00027397,120]
[372082366,1752514076860,500.0,0.00025321,50]
[372082367,1752514077120,500.0,0.00025321,50]
[372082368,1752514077394,470.64550497,0.00025321,50]
[372082371,1752514088282,152.357551,0.0002254,30]
[372082372,1752514088582,152.357551,0.00022305,30]
[372082373,1752514088879,152.357551,0.0002207,30]
[372082376,1752514096612,152.357551,0.00019404,20]
[372082377,1752514096922,152.357551,0.00019008,20]
[372082386,1752514110742,200.0,0.00026189,120]
[372082407,1752514121789,685.28328064,0.00024,60]
[372082408,1752514122589,156.97957972,0.00025321,120]
[372082409,1752514123531,2739.01996011,0.00025321,120]
[372082411,1752514124336,434.39596772,0.000149,2]
[372082412,1752514124359,145.28769195,0.000149,2]
[372082413,1752514124492,1000.0,0.0001,2]
[372082415,1752514126140,3216.36159164,0.00026,120]
[372082416,1752514126285,1237.71713045,0.0002,120]
[372082418,1752514126698,4999.99999917,0.00025321,120]
[372082421,1752514127890,9094.07003722,0.00015,2]
[372082424,1752514128880,210.37482095,0.00016,2]
[372082426,1752514130307,418.4724359,0.0001,2]
[372082427,1752514130527,247.59695688,0.00025321,60]
[372082428,1752514130616,482.83791616,0.00027,120]
[372082439,1752514149123,152.357551,0.000198,20]
[372082440,1752514150872,152.357551,0.000198,20]
[372082441,1752514153130,1829.663076,0.00027397,120]
[372082472,1752514230517,200.0,0.00027222,120]
[372082514,1752514235256,276.00283,0.00027,120]
[372082515,1752514236152,-562.1929198,0.00016338,2]
[372082516,1752514236163,-1161.1420984,0.00016338,2]
[372082517,1752514236207,-544.05302522,0.00016338,2]
[372082518,1752514236217,-239.33,0.00016428,3]
[372082519,1752514236227,-718.02,0.00016428,3]
[372082520,1752514236236,-300.0,0.00016437,2]
[372082521,1752514236246,-6.28641204,0.00016437,2]
[372082522,1752514236265,-293.71358796,0.00016437,2]
[372082523,1752514236275,-157.0,0.00016437,2]
[372082524,1752514236285,-272.13641204,0.00016437,2]
[372082612,1752514238111,-296.86358796,0.00016437,2]
[372082613,1752514238121,-1000.0,0.00016438,2]
[372082614,1752514238131,-366.08255027,0.00016438,3]
[372082616,1752514238144,-633.91744973,0.00016438,3]
[372082618,1752514238153,-460.0,0.00016438,2]
[372082619,1752514238163,-276.43993911,0.00016438,2]
[372082620,1752514238172,-460.0,0.00016438,2]
[372082621,1752514238182,-460.0,0.00016438,2]
[372082622,1752514238192,-460.0,0.00016438,2]
[372082623,1752514238202,-243.95997708,0.00016438,2]
[372082624,1752514238212,-460.0,0.00016438,2]
[372082625,1752514238221,-460.0,0.00016438,2]
[372082627,1752514238231,-460.0,0.00016438,2]
[372082629,1752514238240,-460.0,0.00016438,2]
[372082630,1752514238250,-460.0,0.00016438,2]
[372082631,1752514238259,-460.0,0.00016438,2]
[372082632,1752514238269,-460.0,0.00016438,2]
[372082633,1752514238278,-316.97761444,0.00016438,2]
[372082634,1752514238287,-460.0,0.00016438,2]
[372082635,1752514238297,-526.94443348,0.00016438,2]
[372082636,1752514238306,-460.0,0.00016438,2]
[372082637,1752514238316,-460.0,0.00016438,2]
[372082638,1752514238326,-460.0,0.00016438,2]
[372082639,1752514238336,-460.0,0.00016438,2]
[372082640,1752514238346,-460.0,0.00016438,2]
[372082641,1752514238356,-460.0,0.00016438,2]
[372082642,1752514238366,-460.0,0.00016438,2]
[372082643,1752514238376,-460.0,0.00016438,2]
[372082645,1752514238386,-460.0,0.00016438,2]
[372082647,1752514238396,-460.0,0.00016438,2]
[372082648,1752514238406,-460.0,0.00016438,2]
[372082649,1752514238416,-460.0,0.00016438,2]
[372082650,1752514238426,-460.0,0.00016438,2]
[372082651,1752514238435,-460.0,0.00016438,2]
[372082652,1752514238445,-460.0,0.00016438,2]
[372082653,1752514238454,-179.24087538,0.00016438,2]
[372082654,1752514238464,-460.0,0.00016438,2]
[372082655,1752514238474,-460.0,0.00016438,2]
[372082656,1752514238484,-460.0,0.00016438,2]
[372082657,1752514238494,-460.0,0.00016438,2]
[372082658,1752514238504,-515.78602839,0.00016438,2]
[372082659,1752514238518,-460.0,0.00016438,2]
[372082660,1752514238527,-460.0,0.00016438,2]
[372082661,1752514238537,-460.0,0.00016438,2]
[372082662,1752514238546,-460.0,0.00016438,2]
[372082663,1752514238556,-460.1973974,0.00016438,2]
[372082664,1752514238566,-460.0,0.00016438,2]
[372082665,1752514238575,-515.16298935,0.00016438,2]
[372082666,1752514238586,-460.0,0.00016438,2]
[372082667,1752514238596,-460.73022773,0.00016438,2]
[372082668,1752514238605,-460.0,0.00016438,2]
[372082669,1752514238615,-78.63906791,0.00016438,2]
[372082670,1752514238630,-381.36093209,0.00016438,2]
[372082671,1752514238639,-230.19506791,0.00016438,2]
[372082672,1752514239031,-229.80493209,0.00016438,2]
[372082673,1752514239041,-461.13482205,0.00016438,2]
[372082674,1752514239051,-406.0158418,0.00016438,2]
[372082675,1752514239060,-212.43585589,0.00016438,2]
[372082676,1752514239087,-247.56414411,0.00016438,2]
[372082677,1752514239098,-243.46606917,0.00016438,2]
[372082678,1752514239111,-219.79892354,0.00016438,2]
[372082679,1752514239122,-460.0,0.00016438,2]
[372082680,1752514239133,-460.0,0.00016438,2]
[372082681,1752514239144,-254.18663775,0.00016438,2]
[372082682,1752514239155,-461.71703373,0.00016438,2]
[372082683,1752514239166,-460.0,0.00016438,2]
[372082684,1752514239177,-460.0,0.00016438,2]
[372082685,1752514239189,-460.0,0.00016438,2]
[372082686,1752514239199,-460.0,0.00016438,2]
[372082687,1752514239209,-460.0,0.00016438,2]
[372082688,1752514239219,-460.0,0.00016438,2]
[372082689,1752514239229,-460.0,0.00016438,2]
[372082690,1752514239240,-500.0,0.00016438,2]
[372082691,1752514239250,-500.0,0.00016438,2]
[372082692,1752514239260,-500.0,0.00016438,2]
[372082693,1752514239270,-500.0,0.00016438,2]
[372082694,1752514239280,-500.0,0.00016438,2]
[372082695,1752514239290,-283.49550246,0.00016438,2]
[372082696,1752514239301,-460.0,0.00016438,2]
[372082697,1752514239311,-460.0,0.00016438,2]
[372082698,1752514239321,-460.0,0.00016438,2]
[372082699,1752514239331,-460.0,0.00016438,2]
[372082700,1752514239342,-460.0,0.00016438,2]
[372082701,1752514239352,-460.0,0.00016438,2]
[372082702,1752514239362,-460.0,0.00016438,2]
[372082703,1752514239372,-460.0,0.00016438,2]
[372082704,1752514239382,-460.0,0.00016438,2]
[372082705,1752514239391,-460.0,0.00016438,2]
[372082706,1752514239401,-460.0,0.00016438,2]
[372082707,1752514239411,-460.0,0.00016438,2]
[372082708,1752514239422,-460.0,0.00016438,2]
[372082709,1752514239432,-460.0,0.00016438,2]
[372082710,1752514239442,-460.0,0.00016438,2]
[372082711,1752514239453,-460.0,0.00016438,2]
[372082712,1752514239462,-460.0,0.00016438,2]
[372082713,1752514239473,-226.23570098,0.00016438,2]
[372082714,1752514239484,-508.87784619,0.00016438,2]
[372082715,1752514239494,-460.0,0.00016438,2]
[372082716,1752514239505,-460.0,0.00016438,2]
[372082717,1752514239519,-460.0,0.00016438,2]
[372082718,1752514239529,-460.0,0.00016438,2]
[372082719,1752514239539,-500.0,0.00016438,2]
[372082720,1752514239550,-500.0,0.00016438,2]
[372082721,1752514239561,-505.79646624,0.00016438,2]
[372082722,1752514239571,-460.0,0.00016438,2]
[372082723,1752514239581,-460.0,0.00016438,2]
[372082724,1752514239592,-460.0,0.00016438,2]
[372082725,1752514239603,-460.0,0.00016438,2]
[372082726,1752514239613,-460.0,0.00016438,2]
[372082727,1752514239623,-462.17338485,0.00016438,2]
[372082728,1752514239633,-460.0,0.00016438,2]
[372082729,1752514239644,-460.0,0.00016438,2]
[372082730,1752514239654,-460.0,0.00016438,2]
[372082731,1752514239664,-460.0,0.00016438,2]
[372082732,1752514239674,-460.0,0.00016438,2]
[372082733,1752514239684,-460.0,0.00016438,2]
[372082734,1752514239694,-460.0,0.00016438,2]
[372082735,1752514239704,-460.0,0.00016438,2]
[372082736,1752514239714,-460.0,0.00016438,2]
[372082737,1752514239724,-460.0,0.00016438,2]
[372082738,1752514239734,-391.39337977,0.00016438,2]
[372082739,1752514239743,-460.0,0.00016438,2]
[372082740,1752514239753,-460.0,0.00016438,2]
[372082742,1752514239763,-460.0,0.00016438,2]
[372082743,1752514239773,-460.0,0.00016438,2]
[372082744,1752514239783,-460.0,0.00016438,2]
[372082745,1752514239793,-460.0,0.00016438,2]
[372082746,1752514239803,-460.0,0.00016438,2]
[372082747,1752514239812,-292.22101666,0.00016438,2]
[372082748,1752514239823,-460.0,0.00016438,2]
[372082749,1752514239833,-460.0,0.00016438,2]
[372082750,1752514239843,-460.0,0.00016438,2]
[372082751,1752514239852,-460.0,0.00016438,2]
[372082752,1752514239862,-223.17495044,0.00016438,2]
[372082753,1752514239872,-460.0,0.00016438,2]
[372082754,1752514239881,-460.0,0.00016438,2]
[372082755,1752514239891,-460.0,0.00016438,2]
[372082756,1752514239901,-460.0,0.00016438,2]
[372082757,1752514239911,-460.0,0.00016438,2]
[372082758,1752514239920,-460.0,0.00016438,2]
[372082759,1752514239930,-460.0,0.00016438,2]
[372082760,1752514239940,-460.0,0.00016438,2]
[372082761,1752514239949,-500.0,0.00016438,2]
[372082762,1752514239959,-460.0,0.00016438,2]
[372082763,1752514239968,-460.0,0.00016438,2]
[372082764,1752514239978,-460.0,0.00016438,2]
[372082765,1752514239987,-460.0,0.00016438,2]